fUSD/lending_fUSD_20240424
["ID","MTS","AMOUNT","RATE_DAILY","PERIOD"]
[323385638,1713960913389,-886.34,0.00012876,2]
[323385639,1713960913422,-500.0,0.00012876,2]
[323385640,1713960913452,-500.0,0.00012876,2]
[323385641,1713960913483,-501.9327069,0.00012876,2]
[323385642,1713960913514,-696.27,0.00012876,2]
[323385643,1713960913549,-886.34,0.00012876,2]
[323385644,1713960913579,-500.0,0.00012876,2]
[323385645,1713960913609,-933.93,0.00012876,2]
[323385646,1713960913641,-500.0,0.00012876,2]
[323385647,1713960913673,-696.27,0.00012876,2]
[323385648,1713960913704,-886.34,0.00012876,2]
[323385649,1713960913735,-500.0,0.00012876,2]
[323385650,1713960913767,-933.93,0.00012876,2]
[323385651,1713960913799,-500.0,0.00012876,2]
[323385652,1713960913829,-500.0,0.00012876,2]
[323385653,1713960913859,-696.27,0.00012876,2]
[323385654,1713960913889,-886.34,0.00012876,2]
[323385655,1713960913919,-933.93,0.00012876,2]
[323385656,1713960913951,-500.0,0.00012876,2]
[323385657,1713960913981,-500.0,0.00012876,2]
[323385658,1713960914013,-500.0,0.00012876,2]
[323385659,1713960914044,-819.03,0.00012876,2]
[323385660,1713960914076,-696.27,0.00012876,2]
[323385661,1713960914105,-518.60329551,0.00012876,2]
[323385676,1713961166725,15000.0,0.00019,29]
[323385691,1713961469269,-6000.0,8.809e-05,2]
[323385692,1713961469294,-567.16,8.81e-05,2]
[323385693,1713961469317,-166.58,0.00010512,2]
[323385694,1713961469340,-250.0,0.00010555,2]
[323385695,1713961469363,-1793.92,0.000106,2]
[323385696,1713961469385,-150.0,0.0001075,2]
[323385697,1713961469407,-12849.0,0.00010751,2]
[323385698,1713961469429,-164.24,0.00010788,2]
[323385699,1713961469451,-1500.0,0.00010788,2]
[323385700,1713961469473,-392.0,0.00010855,2]
[323385701,1713961469495,-2598.45,0.00010884,2]
[323385702,1713961469516,-255.95401784,0.000109,2]
[323385703,1713961469537,-187.63,0.00010959,2]
[323385704,1713961469559,-255.95401766,0.00010998,2]
[323385705,1713961469581,-1747.8838238,0.00011,2]
[323385706,1713961469608,-567.16,0.00011074,2]
[323385707,1713961469631,-255.95401766,0.00011096,2]
[323385708,1713961469653,-8419.89,0.00011188,2]
[323385709,1713961469675,-255.95401766,0.00011194,2]
[323385710,1713961469699,-255.95401766,0.00011293,2]
[323385711,1713961469721,-352.86,0.00011293,2]
[323385712,1713961469745,-255.95401766,0.00011391,2]
[323385713,1713961469769,-255.95401766,0.00011489,2]
[323385714,1713961469792,-255.95401766,0.00011587,2]
[323385715,1713961469816,-255.95401766,0.00011685,2]
[323385716,1713961469839,-100000.0,0.000117,2]
[323385717,1713961469862,-362.1525,0.000117,2]
[323385718,1713961469885,-1527.2761,0.000117,2]
[323385719,1713961469911,-155.53,0.00011771,2]
[323385720,1713961469934,-255.95401766,0.00011783,2]
[323385721,1713961469956,-4263.1224314,0.0001179,2]
[323385722,1713961469979,-4976.60496802,0.000118,2]
[323385739,1713961832431,-3719.28,0.00010953,2]
[323385740,1713961832442,-150.0,0.00010959,2]
[323385741,1713961832451,-1000.0,0.00010961,2]
[323385742,1713961832461,-274.98418513,0.00010984,2]
[323385743,1713961832477,-1225.01581487,0.00010984,2]
[323385744,1713961832487,-335.23721769,0.00011,2]
[323385745,1713961832499,-1275.75232492,0.00011,2]
[323385746,1713961832628,-136.89428119,0.00011,2]
[323385747,1713961832638,-150.0,0.00011447,2]
[323385748,1713961832647,-11161.189,0.00011448,2]
[323385749,1713961832656,-255.27,0.00011557,2]
[323385750,1713961832666,-159.15,0.00011599,2]
[323385751,1713961832675,-1911.72,0.00011607,2]
[323385753,1713961832685,-159.15,0.0001166,2]
[323385755,1713961832695,-7500.0,0.000117,2]
[323385756,1713961832704,-1000.0,0.000117,2]
[323385757,1713961832713,-2500.0,0.000117,2]
[323385758,1713961832723,-159.15,0.0001172,2]
[323385759,1713961832733,-150.99,0.0001172,2]
[323385760,1713961832742,-159.15,0.00011781,2]
[323385761,1713961832752,-150.99,0.00011781,2]
[323385762,1713961832763,-499.99,0.00011781,2]
[323385763,1713961832775,-404.80228358,0.00011798,2]
[323385764,1713961832787,-3383.32455658,0.00011798,2]
[323385765,1713961832799,-162.12456104,0.00011798,2]
[323385766,1713961832809,-7335.51636311,0.00011799,2]
[323385767,1713961832819,-163727.93380731,0.000118,2]
[323385768,1713961832859,-398.45410377,0.00010952,2]
[323385769,1713961832869,-363.29809089,0.000118,2]
[323385770,1713961832895,-449.45831463,0.000118,2]
[323385771,1713961832931,-3159.7569,0.000118,2]
[323385772,1713961832944,-5615.33786295,0.000118,2]
[323385773,1713961832957,-10537.33160144,0.000118,2]
[323385774,1713961832985,-3302.59056535,0.000118,2]
[323385775,1713961832997,-52867.68788941,0.000118,2]
[323385776,1713961833007,-334.94556532,0.000118,4]
[323385777,1713961833016,-84395.44984748,0.000118,2]
[323385778,1713961833026,-159.15,0.00011841,2]
[323385779,1713961833036,-255.95401766,0.00011882,2]
[323385780,1713961833044,-159.15,0.00011901,2]
[323385781,1713961833054,-159.15,0.00011962,2]
[323385782,1713961833063,-255.95401766,0.0001198,2]
[323385783,1713961833073,-3069.43072971,0.00012,2]
[323385784,1713961833082,-159.15,0.00012022,2]
[323385785,1713961833091,-160.31,0.00012065,2]
[323385786,1713961833104,-255.95401766,0.00012078,2]
[323385787,1713961833113,-159.15,0.00012083,2]
[323385788,1713961833122,-159.15,0.00012143,2]
[323385789,1713961833132,-255.95401766,0.00012176,2]
[323385790,1713961833142,-300.0,0.00012178,2]
[323385791,1713961833151,-159.15,0.00012204,2]
[323385792,1713961833160,-852.24205783,0.00012231,2]
[323385793,1713961833169,-255.95401766,0.00012274,2]
[323385794,1713961833179,-5731.0,0.00012313,2]
[323385795,1713961833188,-5894.0,0.00012313,2]
[323385796,1713961833197,-2706.0,0.00012313,2]
[323385797,1713961833206,-1793.0,0.00012328,2]
[323385798,1713961833216,-1000.0,0.00012331,2]
[323385799,1713961833225,-255.95401766,0.00012372,2]
[323385800,1713961833235,-300.0,0.000124,4]
[323385801,1713961833243,-255.95401766,0.00012471,2]
[323385802,1713961833252,-700.0,0.000125,4]
[323385803,1713961833261,-255.95401766,0.00012569,2]
[323385804,1713961833270,-1100.0,0.000126,4]
[323385805,1713961833279,-255.95401766,0.00012667,2]
[323385806,1713961833288,-1500.0,0.000127,4]
[323385807,1713961833297,-327.63343049,0.00012745,2]
[323385808,1713961833305,-255.95401766,0.00012765,2]
[323385809,1713961833314,-1000.0,0.00012769,2]
[323385810,1713961833323,-1829.4477069,0.00012774,2]
[323385811,1713961833332,-3495.3483,0.00012776,2]
[323385812,1713961833341,-512.1768,0.00012776,2]
[323385813,1713961833353,-2581.5972,0.00012776,2]
[323385814,1713961833362,-10000.0,0.00012776,2]
[323385815,1713961833371,-1829.44770688,0.00012785,2]
[323385816,1713961833380,-1829.44770688,0.00012797,2]
[323385817,1713961833389,-1900.0,0.000128,4]
[323385818,1713961833400,-1829.44770688,0.00012808,2]
[323385819,1713961833409,-1829.44770688,0.0001282,2]
[323385820,1713961833419,-1829.44770688,0.00012831,2]
[323385821,1713961833429,-431.43209311,0.00012838,2]
[323385822,1713961833439,-1829.44770688,0.00012843,2]
[323385823,1713961833448,-3076.58378859,0.00012844,2]
[323385824,1713961833458,-2100.0,0.00012853,2]
[323385825,1713961833467,-1829.44770688,0.00012854,2]
[323385826,1713961833478,-34148.3073096,0.00012855,2]
[323385827,1713961833487,-11281.41487208,0.00012855,2]
[323385828,1713961833515,-665.23552,0.00012855,2]
[323385829,1713961833526,-454.75337655,0.00012855,2]
[323385830,1713961833538,-4189.38,0.00012855,2]
[323385831,1713961833565,-9500.30566427,0.00012855,2]
[323385832,1713961833575,-14624.07303016,0.00012855,2]
[323385845,1713961838198,-3409.79852614,0.00012855,2]
[323385846,1713961838207,-3161.30792072,0.00012855,2]
[323385847,1713961838220,-6663.0,0.00012855,2]
[323385904,1713961870683,-1475.74702728,0.00012313,2]
[323385905,1713961870697,-1644.25297272,0.00012313,2]
[323385906,1713961870707,-2450.417,0.00012313,2]
[323385907,1713961870716,-152.34575888,0.00012855,2]
[323385908,1713961870725,-1919.435803,0.00012855,2]
[323385909,1713961870735,-982.7226734,0.00012855,2]
[323385910,1713961870744,-982.7226734,0.00012855,2]
[323385911,1713961870753,-982.7226734,0.00012855,2]
[323385912,1713961870762,-982.7226734,0.00012855,2]
[323385913,1713961870771,-982.7226734,0.00012855,2]
[323385914,1713961870780,-3700.602,0.00012855,2]
[323385915,1713961870790,-1562.50161371,0.00012859,2]
[323385916,1713961870799,-2534.29728888,0.00012862,2]
[323385917,1713961870808,-157.3124861,0.00012863,2]
[323385918,1713961870818,-42205.5251862,0.00012864,2]
[323385919,1713961870827,-982.7226734,0.00012864,2]
[323385920,1713961870837,-786.5624307,0.00012864,2]
[323385921,1713961870846,-1829.44770688,0.00012866,2]
[323385922,1713961870855,-643.15226669,0.00012873,2]
[323385923,1713961870865,-304.30621889,0.00012874,2]
[323385924,1713961870874,-155.06224757,0.00012874,2]
[323385925,1713961870884,-408.17868454,0.00012874,2]
[323385926,1713961870893,-1243.72563098,0.00012874,2]
[323385927,1713961870903,-2358.50142136,0.00012874,2]
[323385928,1713961870912,-410.32117245,0.00012874,2]
[323385929,1713961870922,-622.53304923,0.00012874,2]
[323385930,1713961870931,-167.20569175,0.00012874,2]
[323385931,1713961870940,-213.91943303,0.00012874,2]
[323385932,1713961870949,-4017.46183224,0.00012874,2]
[323385933,1713961870963,-5196.0,0.00012874,2]
[323385934,1713961870976,-6807.5000025,0.00012874,2]
[323385935,1713961870987,-40475.55174072,0.00012874,2]
[323385936,1713961870999,-918.90818773,0.00012874,2]
[323385937,1713961872396,-250.0,0.00012874,2]
[323385938,1713961873229,-818.90005,0.00012776,2]
[323385939,1713961990475,15000.0,0.00019,29]
[323385942,1713962288854,15000.0,0.00019,29]
[323385943,1713962612546,538.92,8.901e-05,2]
[323385974,1713963032441,-265.63606918,9.88e-05,2]
[323385975,1713963032451,-155.0,9.881e-05,2]
[323385976,1713963032461,-155.0,9.882e-05,2]
[323385977,1713963032470,-684.26539504,9.883e-05,2]
[323385978,1713963032480,-325.7521165,9.884e-05,2]
[323385979,1713963032489,-4655.66661384,9.884e-05,2]
[323385980,1713963032501,-891.39777765,9.884e-05,2]
[323385981,1713963032510,-592.65222235,9.887e-05,2]
[323385982,1713963032522,-208.34777765,9.887e-05,2]
[323385983,1713963032531,-841.73259696,9.894e-05,2]
[323385984,1713963032541,-150.0,9.894e-05,2]
[323385985,1713963032550,-690.63457715,9.914e-05,2]
[323385986,1713963032559,-150.0,9.918e-05,2]
[323385987,1713963032568,-1270.20375856,9.945e-05,5]
[323385988,1713963032579,-150.99,9.945e-05,2]
[323385989,1713963032588,-250.0,0.00010692,2]
[323385990,1713963032598,-558.14,0.00010742,2]
[323385991,1713963032607,-1123.84,0.0001077,2]
[323385992,1713963032617,-341.09,0.0001077,2]
[323385993,1713963032626,-600.0,0.00010803,2]
[323385994,1713963032636,-1747.8838238,0.00011,2]
[323385995,1713963032645,-538.92,0.00011165,2]
[323385996,1713963032655,-160.31,0.00011304,2]
[323385997,1713963032664,-1500.0,0.00011304,2]
[323385998,1713963032673,-3513.16,0.00011304,2]
[323385999,1713963032683,-158.35,0.00011389,2]
[323386000,1713963032693,-158.35,0.00011455,2]
[323386001,1713963032702,-77.27366256,0.00011521,2]
[323386009,1713963032783,-81.07633744,0.00011521,2]
[323386011,1713963032793,-154.73,0.00011531,2]
[323386014,1713963032803,-84.99893032,0.00011531,2]
[323386029,1713963038382,-150.0,0.00010959,2]
[323386030,1713963038392,-78.75106968,0.00011531,2]
[323386031,1713963038401,-499.99,0.00011531,2]
[323386032,1713963038410,-400.0,0.00011531,2]
[323386033,1713963038419,-154.73,0.00011541,2]
[323386034,1713963038429,-154.73,0.0001155,2]
[323386035,1713963038438,-154.73,0.0001156,2]
[323386036,1713963038447,-154.73,0.0001157,2]
[323386037,1713963038456,-154.73,0.00011579,2]
[323386038,1713963038465,-158.35,0.00011587,2]
[323386039,1713963038474,-2199.6084821,0.00011589,2]
[323386040,1713963038553,-1701.3915179,0.00011589,2]
[323386041,1713963038562,-154.73,0.00011589,2]
[323386042,1713963038571,-158.35,0.00011653,2]
[323386043,1713963038583,-4652.8284821,0.00011699,2]
[323386044,1713963038610,-19978.64589762,0.00011699,2]
[323386045,1713963038620,-52898.2132,0.000117,2]
[323386046,1713963038629,-1000.0,0.000117,2]
[323386047,1713963038638,-158.35,0.00011719,2]
[323386048,1713963038647,-158.35,0.00011785,2]
[323386049,1713963038657,-10000.0,0.00011805,2]
[323386050,1713963038667,-158.35,0.00011851,2]
[323386051,1713963038677,-158.35,0.00011917,2]
[323386052,1713963038686,-164.24,0.00011935,2]
[323386053,1713963038695,-158.35,0.00011983,2]
[323386054,1713963038705,-2750.0,0.00012,2]
[323386055,1713963038714,-1000.0,0.00012,2]
[323386056,1713963038723,-2699.66,0.00012,2]
[323386058,1713963038733,-8000.0,0.00012,2]
[323386060,1713963038742,-351.99361455,0.00012,2]
[323386061,1713963038752,-910.37,0.00012055,2]
[323386062,1713963038765,-600.0,0.00012153,2]
[323386063,1713963038774,-419.16,0.00012192,2]
[323386065,1713963038783,-847.2,0.00012192,2]
[323386067,1713963038793,-195.57,0.00012192,2]
[323386069,1713963038802,-150.0,0.00012192,2]
[323386071,1713963038811,-419.16,0.00012192,2]
[323386073,1713963038820,-419.16,0.00012192,2]
[323386075,1713963038832,-419.16,0.00012192,2]
[323386077,1713963038841,-419.16,0.00012192,2]
[323386079,1713963038850,-693.33,0.00012192,2]
[323386081,1713963038860,-503.0,0.00012301,2]
[323386083,1713963038869,-2296.0,0.0001232,2]
[323386085,1713963038878,-541.0,0.0001232,2]
[323386087,1713963038887,-1107.076,0.0001232,2]
[323386089,1713963038896,-3121.0,0.0001232,2]
[323386091,1713963038904,-2445.0,0.0001232,2]
[323386093,1713963038913,-1640.0,0.0001232,2]
[323386095,1713963038922,-214.0,0.0001232,2]
[323386097,1713963038931,-443.0,0.0001232,2]
[323386098,1713963038940,-1141.0,0.0001232,2]
[323386101,1713963038949,-2706.0,0.0001232,2]
[323386103,1713963038959,-5731.0,0.0001232,2]
[323386104,1713963038968,-5894.0,0.0001232,2]
[323386106,1713963038978,-417.15128774,0.00012555,6]
[323386115,1713963039045,-1122.94407473,0.00012555,6]
[323386119,1713963039077,-11731.79545056,0.00012555,6]
[323386125,1713963039119,-692.51,0.00012555,6]
[323386265,1713963040407,-409.45999997,0.00011805,2]
[323386269,1713963040457,-9590.54000003,0.00011805,2]
[323386270,1713963040466,-9947.95918697,0.00012555,6]
[323386271,1713963040475,-150.0,0.0001262,2]
[323386272,1713963040484,-783.7129,0.00012674,2]
[323386273,1713963040493,-194.07964525,0.00012676,2]
[323386274,1713963040501,-150.0,0.00012691,2]
[323386275,1713963040510,-150.0,0.00012727,2]
[323386276,1713963040519,-1000.0,0.00012772,2]
[323386277,1713963040528,-500.0,0.00012772,2]
[323386278,1713963040536,-139416.9173,0.00012774,2]
[323386279,1713963040545,-1713.98809182,0.00012774,2]
[323386280,1713963040554,-10000.0,0.00012776,2]
[323386281,1713963040563,-7344.31362108,0.00012776,2]
[323386878,1713963072652,-1.373e-05,0.00012776,2]
[323386879,1713963073194,-818.64610744,0.00012776,2]
[323386880,1713963073354,-24273.96204214,0.00012776,2]
[323386881,1713963074526,-1552.62216386,0.00011805,2]
[323386882,1713963074538,-1041.4084361,0.00011805,2]
[323386883,1713963074550,-840.64392545,0.00011805,2]
[323386884,1713963074580,-2474.62315075,0.00011805,2]
[323386885,1713963074590,-5342.26316671,0.00012776,2]
[323386886,1713963074599,-564.50691027,0.00012776,2]
[323386887,1713963074609,-862.86418623,0.00012776,2]
[323386888,1713963074618,-19374.26658604,0.00012776,2]
[323386889,1713963074629,-7929.84838684,0.00012776,2]
[323386890,1713963074637,-1713.98809181,0.00012785,2]
[323386891,1713963074646,-1713.98809181,0.00012797,2]
[323386892,1713963074655,-1713.98809181,0.00012808,2]
[323386893,1713963074665,-88.18733773,0.0001282,2]
[323386894,1713963074676,-889.39,0.0001282,2]
[323386895,1713963074688,-736.41075408,0.0001282,2]
[323386896,1713963074696,-800.47009431,0.00012831,2]
[323386897,1713963074707,-428.03097649,0.00012831,2]
[323386898,1713963074719,-485.48702101,0.00012831,2]
[323386899,1713963074728,-1713.98809181,0.00012843,2]
[323386900,1713963074738,-1713.98809181,0.00012854,2]
[323386901,1713963074747,-617.56603611,0.00012855,2]
[323386902,1713963074757,-5460.76445927,0.00012859,2]
[323386903,1713963076399,-157.3596534,0.00011431,2]
[323386904,1713963076409,-28256.96852127,0.00012859,2]
[323386905,1713963076419,-3100.53489415,0.00012863,2]
[323386906,1713963076434,-1070.94876968,0.00012863,2]
[323386907,1713963076446,-255.41169921,0.00012863,2]
[323386908,1713963076473,-86.57560756,0.00012863,2]
[323386909,1713963076483,-380.56794412,0.00012863,2]
[323386910,1713963076504,-1760.73554116,0.00012863,2]
[323386911,1713963076540,-292.91784996,0.00012776,2]
[323386912,1713963076550,-1521.30399302,0.00012863,2]
[323386913,1713963076559,-2811.743986,0.00012863,2]
[323386914,1713963076569,-1960.8804938,0.00012863,2]
[323386915,1713963076578,-1110.0170015,0.00012863,2]
[323386916,1713963076587,-259.1535092,0.00012863,2]
[323386917,1713963076596,-3656.98296652,0.00012863,2]
[323386918,1713963076610,-2830.02106248,0.00012863,2]
[323386919,1713963076619,-5264.0971047,0.00012863,2]
[323386920,1713963076629,-4041.1901804,0.00012863,2]
[323386921,1713963076638,-2818.2832561,0.00012863,2]
[323386922,1713963076647,-1595.3763318,0.00012863,2]
[323386923,1713963076656,-372.4694076,0.00012863,2]
[323386924,1713963076666,-783.5602101,0.00012863,2]
[323386925,1713963076675,-783.5602101,0.00012863,2]
[323386926,1713963076684,-783.5602101,0.00012863,2]
[323386927,1713963076694,-783.5602101,0.00012863,2]
[323386928,1713963076703,-783.5602101,0.00012863,2]
[323386929,1713963076712,-783.5602101,0.00012863,2]
[323386930,1713963076722,-1713.98809181,0.00012866,2]
[323386931,1713963076732,-203.9438348,0.00012872,2]
[323386932,1713963076741,-155.0,0.00012872,2]
[323386933,1713963076751,-155.0,0.00012872,2]
[323386934,1713963076761,-338.34095941,0.00012872,2]
[323386935,1713963076771,-155.0,0.00012872,2]
[323386936,1713963076780,-155.0,0.00012872,2]
[323386937,1713963076792,-192.70495298,0.00012872,2]
[323386938,1713963076801,-267.35241553,0.00012872,2]
[323386939,1713963076812,-419.32847632,0.00012872,2]
[323386940,1713963076821,-248.485701,0.00012872,2]
[323386941,1713963076831,-404.71022701,0.00012872,2]
[323386942,1713963076840,-155.24784525,0.00012872,2]
[323386943,1713963076851,-155.0,0.00012872,2]
[323386944,1713963076861,-369.99397605,0.00012872,2]
[323386945,1713963076871,-343.26553462,0.00012872,2]
[323386946,1713963076881,-217.45154391,0.00012872,2]
[323386947,1713963076891,-207.76281559,0.00012872,2]
[323386948,1713963076900,-166.84316462,0.00012872,2]
[323386949,1713963076909,-305.08497536,0.00012872,2]
[323386950,1713963076918,-155.0,0.00012872,2]
[323386951,1713963076928,-155.0,0.00012872,2]
[323386952,1713963076937,-786.89515518,0.00012872,2]
[323386953,1713963076946,-164.47454881,0.00012872,2]
[323386954,1713963076956,-313.38784436,0.00012872,2]
[323386955,1713963076965,-157.45318495,0.00012872,2]
[323386956,1713963076975,-207.70034464,0.00012872,2]
[323386957,1713963076984,-255.3668917,0.00012872,2]
[323386958,1713963076993,-170.3145515,0.00012872,2]
[323386959,1713963077002,-3067.70286643,0.00012872,2]
[323386960,1713963077012,-12604.92107252,0.00012872,2]
[323386961,1713963077022,-5000.0,0.00012872,2]
[323386962,1713963077032,-683.42778232,0.00012872,2]
[323386963,1713963077042,-65519.8750414,0.00012873,2]
[323386964,1713963077051,-347.34840719,0.00012873,2]
[323386965,1713963077061,-5762.61876367,0.00012874,2]
[323386966,1713963077073,-4054.38111993,0.00012874,2]
[323386975,1713963618878,15000.0,0.00019,29]
[323386980,1713963694402,-2000.0,9.811e-05,2]
[323386991,1713964168771,556.86,9.4e-05,2]
[323386996,1713964211076,2000.0,0.00025101,120]
[323387027,1713964231557,-221.36339098,9.812e-05,2]
[323387030,1713964231567,-632.26700353,9.998e-05,2]
[323387032,1713964231576,-1775.55226304,9.998e-05,2]
[323387035,1713964231585,-1220.0,9.998e-05,2]
[323387038,1713964231594,-1610.22092962,9.999e-05,2]
[323387039,1713964231604,-150.0,9.999e-05,2]
[323387041,1713964231613,-2308.31641283,0.0001,2]
[323387042,1713964231650,-26516.9006,0.0001,2]
[323387045,1713964233290,15000.0,0.00019,29]
[323387053,1713964237574,-221.36339098,9.997e-05,2]
[323387054,1713964237584,-270.76760202,0.0001,2]
[323387055,1713964237757,-10515.94719312,0.0001,2]
[323387056,1713964237768,-6477.81365,0.0001,2]
[323387057,1713964237782,-23303.20419009,0.0001,2]
[323387058,1713964237854,-500.0,0.0001,2]
[323387059,1713964237908,-4395.733603,0.0001,2]
[323387202,1713964239669,-793.78799327,0.0001,2]
[323387250,1713964241259,-433.23,0.0001,2]
[323387251,1713964241366,-5500.43744089,0.0001,2]
[323387252,1713964241378,-1000.07439358,0.0001,2]
[323387253,1713964241389,-775.77409809,0.0001,2]
[323387254,1713964241400,-33190.74900001,0.0001,2]
[323387255,1713964241490,-448.97754189,0.0001,2]
[323387256,1713964241501,-2258.12544579,0.0001,2]
[323387257,1713964241593,-1120.32376913,0.0001,2]
[323387258,1713964241604,-1000.0,0.0001,2]
[323387271,1713964242734,-1615.12366083,0.0001,2]
[323387272,1713964242849,-4381.476,0.0001,2]
[323387273,1713964243066,-465.36662901,0.0001,2]
[323387274,1713964243080,-529.64387288,0.0001,2]
[323387275,1713964243092,-738.78598,0.0001,2]
[323387326,1713964245677,-1495.25398465,9.999e-05,2]
[323387327,1713964245687,-8090.18895636,0.0001,2]
[323387328,1713964245844,-996.43994237,9.999e-05,2]
[323387329,1713964245882,-307.01029745,9.999e-05,2]
[323387330,1713964245892,-7603.45791138,0.0001,2]
[323387331,1713964245903,-298.38900001,0.0001,2]
[323387332,1713964245923,-541.72179993,0.0001,2]
[323387362,1713964592605,15000.0,0.00019,29]
[323387363,1713964660823,601.56,8.504e-05,2]
[323387365,1713965200242,-155.0,9.976e-05,2]
[323387366,1713965200263,-155.0,9.977e-05,2]
[323387367,1713965200286,-150.0,9.999e-05,2]
[323387368,1713965200309,-140.0,0.0001,2]
[323387369,1713965209808,-4000.0,0.0001,2]
[323387370,1713965218848,-185.81560366,9.999e-05,2]
[323387371,1713965218869,-3814.18439634,0.0001,2]
[323387372,1713965229903,571.48,8.219e-05,2]
[323387373,1713965234547,-599.27979208,9.973e-05,2]
[323387374,1713965234571,-3400.72020792,0.0001,2]
[323387375,1713965239367,-4000.0,0.0001,2]
[323387376,1713965240528,-4000.0,0.0001,2]
[323387377,1713965249108,-4000.0,0.0001,2]
[323387378,1713965260262,-4000.0,0.0001,2]
[323387379,1713965268105,-4000.0,0.0001,2]
[323387380,1713965268667,-4000.0,0.0001,2]
[323387381,1713965269332,-4000.0,0.0001,2]
[323387382,1713965270111,-4000.0,0.0001,2]
[323387383,1713965270784,-4000.0,0.0001,2]
[323387384,1713965271542,-4000.0,0.0001,2]
[323387385,1713965272143,-4000.0,0.0001,2]
[323387386,1713965272805,-4000.0,0.0001,2]
[323387387,1713965273436,-4000.0,0.0001,2]
[323387388,1713965274119,-155.0,9.999e-05,2]
[323387389,1713965274143,-3845.0,0.0001,2]
[323387390,1713965303881,15000.0,0.00019,29]
[323387391,1713965365990,-155.0,9.974e-05,2]
[323387392,1713965366012,-250.0,9.975e-05,2]
[323387393,1713965366034,-3595.0,0.0001,2]
[323387394,1713965374800,-2000.0,0.0001,2]
[323387403,1713965431851,-456.76620795,9.882e-05,2]
[323387404,1713965431863,-1043.23379205,9.882e-05,2]
[323387405,1713965431872,-34.10959808,9.999e-05,2]
[323387406,1713965431908,-509.19993432,9.999e-05,2]
[323387411,1713965432175,-365.92,9.999e-05,2]
[323387413,1713965432187,-528.325408,9.999e-05,2]
[323387414,1713965432205,-3918.88409005,9.999e-05,2]
[323387415,1713965432214,-5756.61590837,0.0001,2]
[323387416,1713965432226,-1065.95942586,0.0001,2]
[323387417,1713965432252,-575.47273153,0.0001,2]
[323387454,1713965438383,-8951.97828916,0.0001,2]
[323387461,1713965438440,-27538.04154287,0.0001,2]
[323387464,1713965438456,-775.44461026,0.0001,2]
[323387470,1713965438510,-13755.4276274,0.0001,2]
[323387474,1713965438534,-35687.25783964,0.0001,2]
[323387477,1713965438552,-630.15,0.0001,2]
[323387615,1713965439856,-3914.46956232,0.0001,2]
[323387617,1713965439868,-183479.96111422,0.0001,2]
[323387619,1713965439878,-1287.49614424,0.0001,2]
[323387621,1713965439887,-3000.0,0.0001,2]
[323387623,1713965439896,-160.29983828,0.0001,2]
[323387626,1713965439906,-614.22070536,0.0001,2]
[323387628,1713965439915,-614.22070536,0.0001,2]
[323387630,1713965439925,-614.22070536,0.0001,2]
[323387632,1713965439934,-614.22070536,0.0001,2]
[323387634,1713965439943,-614.22070536,0.0001,2]
[323387636,1713965439955,-614.22070536,0.0001,2]
[323387638,1713965439964,-614.22070536,0.0001,2]
[323387640,1713965439974,-614.22070536,0.0001,2]
[323387642,1713965439983,-614.22070536,0.0001,2]
[323387644,1713965439992,-614.22070536,0.0001,2]
[323387646,1713965440001,-614.22070536,0.0001,2]
[323387648,1713965440011,-614.22070536,0.0001,2]
[323387650,1713965440020,-614.22070536,0.0001,2]
[323387652,1713965440029,-614.22070536,0.0001,2]
[323387654,1713965440039,-614.22070536,0.0001,2]
[323387656,1713965440048,-614.22070536,0.0001,2]
[323387658,1713965440057,-614.22070536,0.0001,2]
[323387659,1713965440067,-614.22070536,0.0001,2]
[323387661,1713965440076,-614.22070536,0.0001,2]
[323387663,1713965440087,-614.22070536,0.0001,2]
[323387665,1713965440096,-614.22070536,0.0001,2]
[323387667,1713965440106,-614.22070536,0.0001,2]
[323387669,1713965440117,-614.22070536,0.0001,2]